[Event "36th Balaton IM 2018"]
[Site "Balatonlelle"]
[Date "2018.06.12"]
[Round "1"]
[White "Naumkin, Igor"]
[Black "Klaric, Zlatko"]
[Result "1/2-1/2"]
[ECO "D16"]
[WhiteElo "2383"]
[BlackElo "2397"]
[Annotator "ChessBase"]
[PlyCount "20"]
[EventDate "2018.06.12"]
[EventType "swiss"]
[EventCountry "HUN"]
[SourceTitle "playchess.com"]
[Source "ChessBase"]
[SourceQuality "1"]
[TimeControl "40/5400+30:1800+30"]

1. d4 {[%emt 0:00:06]} d5 {[%emt 0:00:54]} 2. c4 {[%emt 0:00:07]} c6 {[%emt 0:00:18]} 3. Nf3 {[%emt 0:00:08]} Nf6 {[%emt 0:00:08]} 4. Nc3 {[%emt 0:00:07]} dxc4 {[%emt 0:00:19]} 5. a4 {[%emt 0:00:07]} Na6 {[%emt 0:00:09]} 6. e4 {[%emt 0:00:53]} Bg4 {[%emt 0:00:21]} 7. Bxc4 {[%emt 0:00:34]} e6 {[%emt 0:00:26]} 8. Be3 {[%emt 0:00:57]} Nb4 {[%emt 0:00:26]} 9. Qd2 {[%emt 0:02:28]} Bxf3 {[%emt 0:01:07]} 10. gxf3 {[%emt 0:00:08]} Qa5 {[%emt 0:00:20]} 1/2-1/2

[Event "36th Balaton IM 2018"]
[Site "Balatonlelle"]
[Date "2018.06.12"]
[Round "1"]
[White "Nagy, Bence"]
[Black "Vegh, Endre"]
[Result "1-0"]
[ECO "B90"]
[WhiteElo "2354"]
[BlackElo "2260"]
[Annotator "ChessBase"]
[PlyCount "53"]
[EventDate "2018.06.12"]
[EventType "swiss"]
[EventCountry "HUN"]
[SourceTitle "playchess.com"]
[Source "ChessBase"]
[SourceQuality "1"]
[TimeControl "40/5400+30:1800+30"]

1. e4 {[%emt 0:00:04]} c5 {[%emt 0:00:47]} 2. Nf3 {[%emt 0:00:12]} d6 {[%emt 0:00:43]} 3. d4 {[%emt 0:00:08]} cxd4 {[%emt 0:00:14]} 4. Nxd4 {[%emt 0:00:15]} Nf6 {[%emt 0:00:21]} 5. Nc3 {[%emt 0:00:20]} a6 {[%emt 0:00:28]} 6. a4 {[%emt 0:00:48]} e6 {[%emt 0:02:13]} 7. a5 {[%emt 0:00:56]} Nc6 {[%emt 0:02:03]} 8. Nxc6 {[%emt 0:04:07]} bxc6 {[%emt 0:00:11]} 9. Bd3 {[%emt 0:00:43]} d5 {[%emt 0:03:15]} 10. Bd2 {[%emt 0:05:44]} Rb8 {[%emt 0:05:48]} 11. O-O {[%emt 0:12:16]} Rxb2 {[%emt 0:09:46]} 12. Qe2 {[%emt 0:04:45]} Be7 {[%emt 0:13:46]} 13. Bxa6 {[%emt 0:29:29]} Rxc2 {[%emt 0:02:55]} 14. Bxc8 {[%emt 0:02:50]} Qxc8 {[%emt 0:00:36]} 15. Rfb1 {[%emt 0:03:00]} O-O {[%emt 0:03:35]} 16. Qd3 {[%emt 0:05:01]} Rxc3 {[%emt 0:01:38]} 17. Bxc3 {[%emt 0:00:31]} Nxe4 {[%emt 0:01:03]} 18. Ra2 {[%emt 0:01:39]} c5 {[%emt 0:04:20]} 19. a6 {[%emt 0:02:41]} c4 {[%emt 0:04:14]} 20. Qe3 {[%emt 0:00:57]} f5 {[%emt 0:08:41]} 21. a7 {[%emt 0:03:54]} Bc5 {[%emt 0:02:45]} 22. Bd4 {[%emt 0:08:51]} f4 {[%emt 0:03:14]} 23. Qxe4 {[%emt 0:01:11]} dxe4 {[%emt 0:00:30]} 24. Bxc5 {[%emt 0:00:05]} Rd8 {[%emt 0:03:57]} 25. Be7 {[%emt 0:00:25]} Qb7 {[%emt 0:00:55]} 26. Raa1 {[%emt 0:02:42]} Qxe7 {[%emt 0:02:48]} 27. Rb8 {[%emt 0:00:16]} 1-0

[Event "36th Balaton IM 2018"]
[Site "Balatonlelle"]
[Date "2018.06.12"]
[Round "1.2"]
[White "Moksh Amit Doshi"]
[Black "Gorti, Akshita"]
[Result "1-0"]
[ECO "D37"]
[WhiteElo "2203"]
[BlackElo "2258"]
[Annotator "ChessBase"]
[PlyCount "73"]
[EventDate "2018.06.12"]
[EventType "swiss"]
[EventCountry "HUN"]
[SourceTitle "playchess.com"]
[Source "ChessBase"]
[SourceQuality "1"]
[TimeControl "40/5400+30:1800+30"]

1. d4 {[%emt 0:00:15]} e6 {[%emt 0:00:38]} 2. c4 {[%emt 0:00:09]} d5 {[%emt 0:00:44]} 3. Nf3 {[%emt 0:00:37]} a6 {[%emt 0:00:29]} 4. cxd5 {[%emt 0:01:03]} exd5 {[%emt 0:00:09]} 5. Nc3 {[%emt 0:00:12]} Nf6 {[%emt 0:00:20]} 6. Bg5 {[%emt 0:00:43]} Be6 {[%emt 0:00:34]} 7. e3 {[%emt 0:00:08]} Nbd7 {[%emt 0:00:24]} 8. Bd3 {[%emt 0:00:17]} h6 {[%emt 0:00:48]} 9. Bh4 {[%emt 0:00:21]} g5 {[%emt 0:00:48]} 10. Bg3 {[%emt 0:00:10]} Nh5 {[%emt 0:00:08]} 11. Be5 {[%emt 0:11:42]} Ng7 {[%emt 0:00:23]} 12. Bg3 {[%emt 0:04:27]} Nh5 {[%emt 0:01:28]} 13. Nd2 {[%emt 0:00:21]} Nxg3 {[%emt 0:02:30]} 14. hxg3 {[%emt 0:00:09]} Bg7 {[%emt 0:09:14]} 15. f4 {[%emt 0:06:00]} Nb6 {[%emt 0:17:40]} 16. f5 {[%emt 0:07:42]} Bd7 {[%emt 0:00:33]} 17. Qf3 {[%emt 0:06:17]} Qe7 {[%emt 0:13:34]} 18. O-O-O {[%emt 0:02:05]} O-O-O {[%emt 0:02:54]} 19. Nb3 {[%emt 0:03:29]} Kb8 {[%emt 0:06:46]} 20. e4 {[%emt 0:05:56]} dxe4 {[%emt 0:07:49]} 21. Bxe4 {[%emt 0:05:52]} Bc8 {[%emt 0:04:14]} 22. Rhe1 {[%emt 0:04:05]} Rhe8 {[%emt 0:02:27]} 23. Kb1 {[%emt 0:06:14]} Qb4 {[%emt 0:01:24]} 24. f6 {[%emt 0:05:17]} Bf8 {[%emt 0:00:30]} 25. g4 {[%emt 0:06:34]} Nc4 {[%emt 0:08:09]} 26. Bd5 {[%emt 0:02:34]} Rxe1 {[%emt 0:04:36]} 27. Rxe1 {[%emt 0:00:08]} a5 {[%emt 0:01:57]} 28. Bxc4 {[%emt 0:05:57]} Qxc4 {[%emt 0:00:07]} 29. Nxa5 {[%emt 0:00:21]} Qb4 {[%emt 0:01:31]} 30. Re5 {[%emt 0:02:37]} c5 {[%emt 0:04:57]} 31. Nb3 {[%emt 0:06:53]} cxd4 {[%emt 0:00:24]} 32. Rb5 {[%emt 0:00:50]} dxc3 {[%emt 0:05:23]} 33. Rxb4 {[%emt 0:00:18]} Bxb4 {[%emt 0:00:13]} 34. bxc3 {[%emt 0:00:46]} Bd6 {[%emt 0:00:39]} 35. Qe4 {[%emt 0:01:15]} Be6 {[%emt 0:01:38]} 36. Nd4 {[%emt 0:00:08]} Bc4 {[%emt 0:01:20]} 37. Nc6+ {[%emt 0:00:36]} 1-0

[Event "36th Balaton IM 2018"]
[Site "Balatonlelle"]
[Date "2018.06.12"]
[Round "1.3"]
[White "McPhillips, Joseph"]
[Black "Gungl, Theo"]
[Result "1/2-1/2"]
[ECO "B50"]
[WhiteElo "2399"]
[BlackElo "2237"]
[Annotator "ChessBase"]
[PlyCount "161"]
[EventDate "2018.06.12"]
[EventType "swiss"]
[EventCountry "HUN"]
[SourceTitle "playchess.com"]
[Source "ChessBase"]
[SourceQuality "1"]
[TimeControl "40/5400+30:1800+30"]

1. e4 {[%emt 0:00:02]} c5 {[%emt 0:00:31]} 2. Nf3 {[%emt 0:00:07]} d6 {[%emt 0:00:04]} 3. c3 {[%emt 0:00:02]} Nf6 {[%emt 0:00:06]} 4. h3 {[%emt 0:00:05]} Nbd7 {[%emt 0:00:33]} 5. Bd3 {[%emt 0:00:27]} b6 {[%emt 0:00:41]} 6. O-O {[%emt 0:00:18]} Bb7 {[%emt 0:00:03]} 7. Re1 {[%emt 0:00:11]} Qc7 {[%emt 0:00:17]} 8. Bc2 {[%emt 0:00:46]} Rc8 {[%emt 0:00:29]} 9. d3 {[%emt 0:06:48]} g6 {[%emt 0:05:10]} 10. Bg5 {[%emt 0:01:03]} Bg7 {[%emt 0:00:23]} 11. Qc1 {[%emt 0:01:50]} O-O {[%emt 0:01:49]} 12. Bh6 {[%emt 0:02:43]} e5 {[%emt 0:20:14]} 13. Qg5 {[%emt 0:01:30]} Nh5 {[%emt 0:10:20]} 14. Na3 {[%emt 0:03:38]} Rfe8 {[%emt 0:26:31]} 15. Bxg7 {[%emt 0:06:19]} Nxg7 {[%emt 0:02:22]} 16. Qh6 {[%emt 0:14:00]} Nf8 {[%emt 0:03:08]} 17. Bb3 {[%emt 0:01:06]} Nge6 {[%emt 0:01:00]} 18. Nc2 {[%emt 0:02:53]} Nf4 {[%emt 0:11:37]} 19. Ng5 {[%emt 0:09:35]} d5 {[%emt 0:01:32]} 20. Ne3 {[%emt 0:02:04]} Qd8 {[%emt 0:01:25]} 21. exd5 {[%emt 0:09:50]} Bxd5 {[%emt 0:00:38]} 22. Nxd5 {[%emt 0:04:18]} Nxd5 {[%emt 0:00:04]} 23. Ne4 {[%emt 0:01:02]} Re6 {[%emt 0:02:00]} 24. Qg5 {[%emt 0:05:11]} Kg7 {[%emt 0:01:56]} 25. Qg3 {[%emt 0:00:49]} f6 {[%emt 0:02:57]} 26. Qf3 {[%emt 0:02:51]} Rc7 {[%emt 0:04:09]} 27. h4 {[%emt 0:02:32]} Rd7 {[%emt 0:00:43]} 28. g3 {[%emt 0:01:08]} a6 {[%emt 0:01:01]} 29. a4 {[%emt 0:01:00]} Rc6 {[%emt 0:01:32]} 30. Qg2 {[%emt 0:07:09]} Ne7 {[%emt 0:00:28]} 31. Bc4 {[%emt 0:01:31]} Ra7 {[%emt 0:00:21]} 32. Qf3 {[%emt 0:00:16]} a5 {[%emt 0:00:55]} 33. Bb5 {[%emt 0:01:06]} Re6 {[%emt 0:00:09]} 34. Nd2 {[%emt 0:00:06]} Qa8 {[%emt 0:01:16]} 35. Qg4 {[%emt 0:01:42]} Nf5 {[%emt 0:00:38]} 36. Nc4 {[%emt 0:00:31]} Qb8 {[%emt 0:00:35]} 37. Rad1 {[%emt 0:05:09]} Rae7 {[%emt 0:00:32]} 38. Qf3 {[%emt 0:01:18]} Nd6 {[%emt 0:00:31]} 39. Ne3 {[%emt 0:02:02]} Nxb5 {[%emt 0:00:08]} 40. axb5 {[%emt 0:00:00]} f5 {[%emt 0:00:41]} 41. Kg2 {[%emt 0:04:33]} Nd7 {[%emt 0:04:45]} 42. h5 {[%emt 0:02:14]} e4 {[%emt 0:13:07]} 43. Qf4 {[%emt 0:00:02]} Qxf4 {[%emt 0:00:41]} 44. gxf4 {[%emt 0:00:02]} Nf6 {[%emt 0:01:34]} 45. hxg6 {[%emt 0:00:06]} hxg6 {[%emt 0:00:06]} 46. Rh1 {[%emt 0:00:03]} exd3 {[%emt 0:04:25]} 47. Rxd3 {[%emt 0:00:04]} Re4 {[%emt 0:00:49]} 48. Kf3 {[%emt 0:00:51]} Kf7 {[%emt 0:01:23]} 49. Rh8 {[%emt 0:01:24]} Re8 {[%emt 0:00:53]} 50. Rxe8 {[%emt 0:00:18]} Rxe8 {[%emt 0:00:42]} 51. Nc4 {[%emt 0:02:15]} Re6 {[%emt 0:00:44]} 52. Ne5+ {[%emt 0:04:25]} Kg7 {[%emt 0:00:07]} 53. Rd8 {[%emt 0:00:10]} Ne4 {[%emt 0:05:18]} 54. Rd7+ {[%emt 0:00:49]} Kg8 {[%emt 0:00:44]} 55. Rd8+ {[%emt 0:06:38]} Kg7 {[%emt 0:00:52]} 56. Nc4 {[%emt 0:01:39]} Nf6 {[%emt 0:00:42]} 57. Ne3 {[%emt 0:00:03]} Kf7 {[%emt 0:00:48]} 58. Rd1 {[%emt 0:01:05]} Re4 {[%emt 0:00:41]} 59. Rd6 {[%emt 0:01:04]} Re6 {[%emt 0:00:05]} 60. Rd8 {[%emt 0:00:27]} Ke7 {[%emt 0:00:17]} 61. Rb8 {[%emt 0:00:36]} Nd7 {[%emt 0:00:42]} 62. Rh8 {[%emt 0:00:42]} Nf6 {[%emt 0:01:02]} 63. Ra8 {[%emt 0:01:26]} Kf7 {[%emt 0:01:16]} 64. Ra7+ {[%emt 0:00:33]} Re7 {[%emt 0:00:17]} 65. Ra6 {[%emt 0:01:06]} Re6 {[%emt 0:00:05]} 66. Nc4 {[%emt 0:01:00]} Nd7 {[%emt 0:00:01]} 67. Ra8 {[%emt 0:02:32]} Ke7 {[%emt 0:01:26]} 68. Rg8 {[%emt 0:00:08]} Kf7 {[%emt 0:00:14]} 69. Rh8 {[%emt 0:00:05]} Kg7 {[%emt 0:01:05]} 70. Rd8 {[%emt 0:00:22]} Re7 {[%emt 0:00:07]} 71. Nd6 {[%emt 0:00:40]} Kf6 {[%emt 0:00:50]} 72. Rc8 {[%emt 0:00:27]} Re6 {[%emt 0:00:16]} 73. Nc4 {[%emt 0:02:20]} Kf7 {[%emt 0:00:13]} 74. Ra8 {[%emt 0:00:23]} Ke7 {[%emt 0:00:18]} 75. Rh8 {[%emt 0:00:18]} Re4 {[%emt 0:01:15]} 76. Rh7+ {[%emt 0:00:34]} Kd8 {[%emt 0:00:05]} 77. Nd6 {[%emt 0:04:27]} Re7 {[%emt 0:00:53]} 78. Nb7+ {[%emt 0:01:17]} Ke8 {[%emt 0:00:05]} 79. Nd6+ {[%emt 0:00:04]} Kd8 {[%emt 0:00:05]} 80. Nb7+ {[%emt 0:02:28]} Ke8 {[%emt 0:00:01]} 81. Nd6+ {[%emt 0:00:21]} 1/2-1/2

[Event "36th Balaton IM 2018"]
[Site "Balatonlelle"]
[Date "2018.06.12"]
[Round "1.5"]
[White "Saber, Yasser"]
[Black "Urh, Zala"]
[Result "0-1"]
[ECO "E48"]
[WhiteElo "2266"]
[BlackElo "2248"]
[Annotator "ChessBase"]
[PlyCount "110"]
[EventDate "2018.06.12"]
[EventType "swiss"]
[EventCountry "HUN"]
[SourceTitle "playchess.com"]
[Source "ChessBase"]
[SourceQuality "1"]
[TimeControl "40/5400+30:1800+30"]

1. d4 {[%emt 0:00:04]} Nf6 {[%emt 0:00:42]} 2. c4 {[%emt 0:00:08]} e6 {[%emt 0:00:10]} 3. Nc3 {[%emt 0:00:05]} Bb4 {[%emt 0:00:18]} 4. e3 {[%emt 0:00:04]} O-O {[%emt 0:01:17]} 5. Bd3 {[%emt 0:00:11]} c5 {[%emt 0:01:26]} 6. Nge2 {[%emt 0:00:12]} d5 {[%emt 0:02:24]} 7. O-O {[%emt 0:01:25]} cxd4 {[%emt 0:05:24]} 8. exd4 {[%emt 0:00:31]} dxc4 {[%emt 0:02:04]} 9. Bxc4 {[%emt 0:00:04]} Nbd7 {[%emt 0:02:42]} 10. Bg5 {[%emt 0:03:46]} h6 {[%emt 0:06:14]} 11. Bh4 {[%emt 0:02:22]} Be7 {[%emt 0:02:19]} 12. Rc1 {[%emt 0:08:01]} Nb6 {[%emt 0:02:52]} 13. Bb3 {[%emt 0:00:18]} Nbd5 {[%emt 0:02:37]} 14. Nxd5 {[%emt 0:01:06]} Nxd5 {[%emt 0:01:26]} 15. Bxe7 {[%emt 0:00:17]} Nxe7 {[%emt 0:11:44]} 16. Qd3 {[%emt 0:08:26]} Bd7 {[%emt 0:05:37]} 17. Rc5 {[%emt 0:12:17]} Bc6 {[%emt 0:12:37]} 18. Nf4 {[%emt 0:09:04]} Qd6 {[%emt 0:05:02]} 19. Re5 {[%emt 0:07:30]} Rfd8 {[%emt 0:08:36]} 20. Rd1 {[%emt 0:09:39]} Qxe5 {[%emt 0:01:35]} 21. dxe5 {[%emt 0:00:03]} Rxd3 {[%emt 0:00:08]} 22. Rxd3 {[%emt 0:02:53]} g5 {[%emt 0:01:50]} 23. Nh5 {[%emt 0:00:48]} Ng6 {[%emt 0:02:53]} 24. Re3 {[%emt 0:02:45]} Rd8 {[%emt 0:01:48]} 25. Nf6+ {[%emt 0:12:32]} Kg7 {[%emt 0:02:42]} 26. Ne4 {[%emt 0:03:48]} Rd4 {[%emt 0:02:09]} 27. Bc2 {[%emt 0:09:33]} Rc4 {[%emt 0:03:54]} 28. Nc3 {[%emt 0:00:45]} Nf4 {[%emt 0:03:50]} 29. g3 {[%emt 0:01:30]} Nd5 {[%emt 0:01:11]} 30. Rd3 {[%emt 0:01:47]} Nb4 {[%emt 0:00:59]} 31. Rd2 {[%emt 0:00:12]} Rc5 {[%emt 0:00:58]} 32. f4 {[%emt 0:01:26]} gxf4 {[%emt 0:00:17]} 33. gxf4 {[%emt 0:00:01]} Rc4 {[%emt 0:00:37]} 34. f5 {[%emt 0:01:18]} Rg4+ {[%emt 0:00:33]} 35. Kf1 {[%emt 0:01:38]} Rf4+ {[%emt 0:00:46]} 36. Kg1 {[%emt 0:00:58]} exf5 {[%emt 0:00:36]} 37. Bb3 {[%emt 0:00:15]} Rf3 {[%emt 0:02:47]} 38. Bc4 {[%emt 0:00:33]} Re3 {[%emt 0:02:08]} 39. a3 {[%emt 0:00:01]} Na6 {[%emt 0:00:08]} 40. Bxa6 {[%emt 0:00:00]} bxa6 {[%emt 0:00:01]} 41. Rd6 {[%emt 0:02:28]} Bb5 {[%emt 0:08:48]} 42. Rd5 {[%emt 0:06:41]} Bc4 {[%emt 0:06:48]} 43. Rc5 {[%emt 0:00:04]} Re1+ {[%emt 0:01:54]} 44. Kf2 {[%emt 0:00:50]} Rf1+ {[%emt 0:00:06]} 45. Kg2 {[%emt 0:01:13]} Rf4 {[%emt 0:00:17]} 46. Nd5 {[%emt 0:13:18]} Rd4 {[%emt 0:04:53]} 47. Nf6 {[%emt 0:00:16]} Be6 {[%emt 0:00:40]} 48. Rc2 {[%emt 0:04:59]} Kg6 {[%emt 0:07:51]} 49. Kf3 {[%emt 0:00:25]} f4 {[%emt 0:00:13]} 50. Re2 {[%emt 0:05:57]} Kf5 {[%emt 0:01:10]} 51. Kf2 {[%emt 0:00:32]} Bc4 {[%emt 0:00:49]} 52. Re1 {[%emt 0:00:32]} Rd2+ {[%emt 0:00:16]} 53. Kg1 {[%emt 0:00:26]} f3 {[%emt 0:03:13]} 54. Ne4 {[%emt 0:00:04]} Rg2+ {[%emt 0:00:09]} 55. Kh1 {[%emt 0:00:06]} f2 {[%emt 0:01:00]} 0-1

[Event "36th Balaton IM 2018"]
[Site "Balatonlelle"]
[Date "2018.06.13"]
[Round "2.1"]
[White "Klaric, Zlatko"]
[Black "Urh, Zala"]
[Result "0-1"]
[ECO "D00"]
[WhiteElo "2397"]
[BlackElo "2248"]
[Annotator "ChessBase"]
[PlyCount "88"]
[EventDate "2018.06.12"]
[EventType "swiss"]
[EventCountry "HUN"]
[SourceTitle "playchess.com"]
[Source "ChessBase"]
[SourceQuality "1"]
[TimeControl "40/5400+30:1800+30"]

1. d4 {[%emt 0:00:04]} Nf6 {[%emt 0:00:37]} 2. Bf4 {[%emt 0:00:07]} d5 {[%emt 0:01:16]} 3. e3 {[%emt 0:00:16]} c5 {[%emt 0:02:38]} 4. c3 {[%emt 0:00:53]} g6 {[%emt 0:13:40]} 5. Bxb8 {[%emt 0:11:10]} Rxb8 {[%emt 0:00:14]} 6. Bb5+ {[%emt 0:00:15]} Bd7 {[%emt 0:03:38]} 7. Bxd7+ {[%emt 0:03:05]} Qxd7 {[%emt 0:01:24]} 8. Nd2 {[%emt 0:02:20]} b6 {[%emt 0:03:48]} 9. Ngf3 {[%emt 0:00:17]} Bg7 {[%emt 0:00:43]} 10. Ne5 {[%emt 0:01:15]} Qc7 {[%emt 0:01:28]} 11. Qa4+ {[%emt 0:01:01]} b5 {[%emt 0:03:31]} 12. Qa3 {[%emt 0:00:33]} c4 {[%emt 0:12:29]} 13. O-O {[%emt 0:10:40]} O-O {[%emt 0:01:31]} 14. f4 {[%emt 0:02:36]} Ne8 {[%emt 0:08:30]} 15. e4 {[%emt 0:01:35]} Nf6 {[%emt 0:01:28]} 16. Rae1 {[%emt 0:02:51]} Rfe8 {[%emt 0:02:51]} 17. g3 {[%emt 0:03:58]} a5 {[%emt 0:03:52]} 18. b4 {[%emt 0:09:14]} axb4 {[%emt 0:08:29]} 19. Qxb4 {[%emt 0:01:52]} dxe4 {[%emt 0:00:23]} 20. Nxe4 {[%emt 0:04:32]} Nd5 {[%emt 0:00:52]} 21. Qb2 {[%emt 0:05:07]} b4 {[%emt 0:03:23]} 22. cxb4 {[%emt 0:09:53]} Rxb4 {[%emt 0:01:07]} 23. Qg2 {[%emt 0:05:39]} c3 {[%emt 0:09:03]} 24. Ng5 {[%emt 0:00:55]} Rxd4 {[%emt 0:01:23]} 25. Qh3 {[%emt 0:03:06]} Nf6 {[%emt 0:02:22]} 26. Ngxf7 {[%emt 0:11:00]} Qc5 {[%emt 0:03:03]} 27. Kh1 {[%emt 0:01:23]} Qd5+ {[%emt 0:01:38]} 28. Qg2 {[%emt 0:00:18]} Rd2 {[%emt 0:00:41]} 29. Qxd5 {[%emt 0:03:53]} Nxd5 {[%emt 0:00:01]} 30. Ng5 {[%emt 0:02:01]} Rxa2 {[%emt 0:01:01]} 31. Rc1 {[%emt 0:00:20]} c2 {[%emt 0:02:30]} 32. Rf2 {[%emt 0:01:16]} Rc8 {[%emt 0:01:57]} 33. Ngf3 {[%emt 0:00:34]} Nb4 {[%emt 0:00:49]} 34. Ne1 {[%emt 0:01:29]} Bxe5 {[%emt 0:00:47]} 35. fxe5 {[%emt 0:00:02]} Rb2 {[%emt 0:00:10]} 36. Kg2 {[%emt 0:00:21]} Rb1 {[%emt 0:00:26]} 37. Nxc2 {[%emt 0:00:19]} Rxc1 {[%emt 0:00:32]} 38. Nxb4 {[%emt 0:00:04]} Re1 {[%emt 0:01:16]} 39. Nd3 {[%emt 0:00:43]} Re3 {[%emt 0:00:12]} 40. Rf3 {[%emt 0:00:00]} Rc2+ {[%emt 0:00:26]} 41. Nf2 {[%emt 0:01:59]} Rxe5 {[%emt 0:00:25]} 42. g4 {[%emt 0:00:48]} Ree2 {[%emt 0:00:39]} 43. Kg3 {[%emt 0:00:07]} e5 {[%emt 0:00:26]} 44. g5 {[%emt 0:00:26]} Rxf2 {[%emt 0:03:14]} 0-1

[Event "36th Balaton IM 2018"]
[Site "Balatonlelle"]
[Date "2018.06.13"]
[Round "2.2"]
[White "Vegh, Endre"]
[Black "Saber, Yasser"]
[Result "1-0"]
[ECO "B09"]
[WhiteElo "2260"]
[BlackElo "2266"]
[Annotator "ChessBase"]
[PlyCount "83"]
[EventDate "2018.06.12"]
[EventType "swiss"]
[EventCountry "HUN"]
[SourceTitle "playchess.com"]
[Source "ChessBase"]
[SourceQuality "1"]
[TimeControl "40/5400+30:1800+30"]

1. d4 {[%emt 0:03:48]} d6 {[%emt 0:00:36]} 2. e4 {[%emt 0:00:47]} Nf6 {[%emt 0:00:04]} 3. Nc3 {[%emt 0:00:20]} g6 {[%emt 0:00:04]} 4. f4 {[%emt 0:00:14]} Bg7 {[%emt 0:00:03]} 5. Nf3 {[%emt 0:00:12]} O-O {[%emt 0:00:05]} 6. e5 {[%emt 0:00:35]} dxe5 {[%emt 0:00:05]} 7. fxe5 {[%emt 0:00:15]} Nd5 {[%emt 0:00:05]} 8. Bc4 {[%emt 0:00:40]} Nb6 {[%emt 0:00:02]} 9. Bb3 {[%emt 0:00:36]} Nc6 {[%emt 0:00:04]} 10. a4 {[%emt 0:01:21]} a5 {[%emt 0:04:55]} 11. h3 {[%emt 0:04:29]} Nb4 {[%emt 0:01:04]} 12. O-O {[%emt 0:02:23]} Bd7 {[%emt 0:10:32]} 13. Ng5 {[%emt 0:02:49]} Be8 {[%emt 0:11:18]} 14. Qg4 {[%emt 0:05:24]} h5 {[%emt 0:19:16]} 15. Qe4 {[%emt 0:15:23]} e6 {[%emt 0:02:29]} 16. Be3 {[%emt 0:11:22]} Bc6 {[%emt 0:02:05]} 17. Nxf7 {[%emt 0:03:24]} Bxe4 {[%emt 0:05:46]} 18. Nxd8 {[%emt 0:00:11]} Bxc2 {[%emt 0:21:02]} 19. Bxe6+ {[%emt 0:03:04]} Kh7 {[%emt 0:00:04]} 20. Rxf8 {[%emt 0:01:34]} Bxf8 {[%emt 0:00:03]} 21. Nxb7 {[%emt 0:00:58]} Re8 {[%emt 0:04:30]} 22. Bf7 {[%emt 0:01:01]} Re7 {[%emt 0:00:36]} 23. e6 {[%emt 0:00:51]} c6 {[%emt 0:02:04]} 24. Nxa5 {[%emt 0:05:36]} Bh6 {[%emt 0:06:48]} 25. Bxh6 {[%emt 0:02:17]} Kxh6 {[%emt 0:00:02]} 26. b3 {[%emt 0:01:52]} Kg7 {[%emt 0:03:31]} 27. Na2 {[%emt 0:03:06]} N4d5 {[%emt 0:01:26]} 28. Rc1 {[%emt 0:01:31]} Be4 {[%emt 0:00:38]} 29. Nxc6 {[%emt 0:01:48]} Rb7 {[%emt 0:01:05]} 30. a5 {[%emt 0:02:35]} Nc8 {[%emt 0:02:35]} 31. b4 {[%emt 0:02:45]} Nd6 {[%emt 0:00:05]} 32. a6 {[%emt 0:03:50]} Rb6 {[%emt 0:01:36]} 33. a7 {[%emt 0:01:52]} Nc7 {[%emt 0:01:00]} 34. Nd8 {[%emt 0:03:23]} Ncb5 {[%emt 0:01:20]} 35. e7 {[%emt 0:05:27]} Ra6 {[%emt 0:00:18]} 36. Nc3 {[%emt 0:02:04]} Nxc3 {[%emt 0:00:03]} 37. Rxc3 {[%emt 0:00:43]} Rxa7 {[%emt 0:00:12]} 38. e8=Q {[%emt 0:00:30]} Nxe8 {[%emt 0:00:08]} 39. Bxe8 {[%emt 0:00:02]} Ra2 {[%emt 0:01:07]} 40. Bc6 {[%emt 0:00:00]} Rxg2+ {[%emt 0:00:24]} 41. Kf1 {[%emt 0:01:14]} Bxc6 {[%emt 0:00:15]} 42. Nxc6 {[%emt 0:00:15]} 1-0

[Event "36th Balaton IM 2018"]
[Site "Balatonlelle"]
[Date "2018.06.13"]
[Round "2.3"]
[White "Gungl, Theo"]
[Black "Nagy, Bence"]
[Result "0-1"]
[ECO "B94"]
[WhiteElo "2237"]
[BlackElo "2354"]
[Annotator "ChessBase"]
[PlyCount "69"]
[EventDate "2018.06.12"]
[EventType "swiss"]
[EventCountry "HUN"]
[SourceTitle "playchess.com"]
[Source "ChessBase"]
[SourceQuality "1"]
[TimeControl "40/5400+30:1800+30"]

1. e4 {[%emt 0:00:02]} c5 {[%emt 0:00:35]} 2. Nf3 {[%emt 0:00:04]} d6 {[%emt 0:00:08]} 3. d4 {[%emt 0:00:04]} cxd4 {[%emt 0:00:36]} 4. Nxd4 {[%emt 0:00:01]} Nf6 {[%emt 0:00:14]} 5. Nc3 {[%emt 0:00:05]} a6 {[%emt 0:00:20]} 6. Bg5 {[%emt 0:00:06]} Nbd7 {[%emt 0:00:20]} 7. Qe2 {[%emt 0:00:08]} h6 {[%emt 0:01:22]} 8. Bh4 {[%emt 0:02:23]} g6 {[%emt 0:00:26]} 9. f4 {[%emt 0:00:30]} e5 {[%emt 0:00:26]} 10. O-O-O {[%emt 0:01:34]} exd4 {[%emt 0:01:04]} 11. e5 {[%emt 0:00:10]} dxc3 {[%emt 0:00:38]} 12. exf6+ {[%emt 0:01:11]} Ne5 {[%emt 0:00:17]} 13. fxe5 {[%emt 0:14:05]} Be6 {[%emt 0:00:17]} 14. Be1 {[%emt 0:45:26]} cxb2+ {[%emt 0:09:29]} 15. Kxb2 {[%emt 0:03:37]} Qc7 {[%emt 0:08:22]} 16. Bc3 {[%emt 0:04:41]} Rc8 {[%emt 0:02:52]} 17. Qe1 {[%emt 0:04:03]} Qc5 {[%emt 0:05:58]} 18. exd6 {[%emt 0:10:20]} Bxd6 {[%emt 0:00:26]} 19. Rxd6 {[%emt 0:00:13]} Qxd6 {[%emt 0:00:18]} 20. Bd3 {[%emt 0:01:33]} O-O {[%emt 0:05:04]} 21. Qe3 {[%emt 0:03:02]} Rxc3 {[%emt 0:04:31]} 22. Kxc3 {[%emt 0:00:36]} Rc8+ {[%emt 0:02:09]} 23. Kd2 {[%emt 0:01:03]} Bf5 {[%emt 0:06:40]} 24. Rf1 {[%emt 0:02:58]} Bxd3 {[%emt 0:01:55]} 25. Qxd3 {[%emt 0:00:55]} Qxh2 {[%emt 0:01:24]} 26. Rf2 {[%emt 0:00:56]} Qc7 {[%emt 0:01:29]} 27. Kc1 {[%emt 0:01:03]} Qa5 {[%emt 0:01:01]} 28. Qd7 {[%emt 0:02:23]} Rd8 {[%emt 0:05:05]} 29. Qe7 {[%emt 0:00:12]} Qg5+ {[%emt 0:00:39]} 30. Kb2 {[%emt 0:00:13]} Qb5+ {[%emt 0:00:30]} 31. Kc1 {[%emt 0:00:09]} Re8 {[%emt 0:00:20]} 32. Qd6 {[%emt 0:00:45]} Re1+ {[%emt 0:02:35]} 33. Kd2 {[%emt 0:00:02]} Qa5+ {[%emt 0:00:10]} 34. c3 {[%emt 0:00:28]} Re8 {[%emt 0:00:06]} 35. Qe5 {[%emt 0:00:30]} 0-1